bitfinex-derivatives/quotes_BTCF0:USTF0_20210109
["timestamp","ask_amount","ask_price","bid_price","bid_amount"]
[1610235835596,0.13632608,40310.0,40309.0,0.13632608]
[1610235836398,0.13632608,40310.0,40309.0,0.1365469]
[1610235837602,1.13632608,40310.0,40309.0,0.1365469]
[1610235839501,1.23605608,40310.0,40309.0,0.1365469]
[1610235840904,1.23605608,40310.0,40309.0,0.00022082]
[1610235841104,1.23636106,40310.0,40309.0,0.00022082]
[1610235841306,1.23636106,40310.0,40307.0,0.00022082]
[1610235841706,0.00030498,40309.0,40307.0,0.00022082]
[1610235841903,0.00030498,40309.0,40291.0,0.00022085]
[1610235842104,0.00030498,40309.0,40283.0,0.01092109]
[1610235842307,0.00030498,40309.0,40296.0,0.13632608]
[1610235842705,0.00030498,40309.0,40297.0,0.00022085]
[1610235843306,0.00030498,40309.0,40283.0,0.0002209]
[1610235843507,0.00030498,40309.0,40282.0,1.0]
[1610235843707,6.0,40298.0,40284.0,0.00022091]
[1610235844107,6.07712,40298.0,40283.0,0.00022091]
[1610235844308,0.13632608,40284.0,40281.0,0.13632608]
[1610235844506,0.22207608,40284.0,40281.0,0.13632608]
[1610235844810,0.22207608,40284.0,40282.0,0.00022093]
[1610235846312,0.08575,40284.0,40282.0,0.00022093]
[1610235849214,0.08575,40284.0,40283.0,0.00022091]
[1610235849615,0.13632608,40291.0,40283.0,0.0002209]
[1610235849814,0.13632608,40291.0,40282.0,0.0002209]
[1610235850018,0.13632608,40291.0,40284.0,0.0002209]
[1610235850215,0.13632608,40291.0,40290.0,0.13632608]
[1610235851615,1.13632608,40291.0,40290.0,0.13632608]
[1610235852320,1.13632608,40291.0,40281.0,4.1103]
[1610235852719,1.13632608,40291.0,40282.0,0.00022092]
[1610235853220,1.13632608,40291.0,40281.0,4.1103]
[1610235853619,1.0,40282.0,40281.0,4.1103]
[1610235854019,1.10291,40282.0,40281.0,4.1103]
[1610235854320,1.23923608,40282.0,40281.0,4.1103]
[1610235860125,1.23923608,40282.0,40270.0,0.13632608]
[1610235860325,1.23923608,40282.0,40281.0,0.13632608]
[1610235861325,1.23923608,40282.0,40267.0,3.5861]
[1610235861725,1.23923608,40282.0,40268.0,0.00022097]
[1610235862126,1.23923608,40282.0,40267.0,3.5861]
[1610235862326,0.13632608,40268.0,40267.0,3.5861]
[1610235864630,0.13632608,40268.0,40266.0,0.13632608]
[1610235865428,0.13632608,40268.0,40250.0,3.5857]
[1610235865631,1.0,40267.0,40250.0,3.5857]
[1610235865829,1.0,40267.0,40251.0,0.00022389]
[1610235866229,1.0,40267.0,40250.0,3.5857]
[1610235866430,1.0,40267.0,40255.0,0.13632608]
[1610235867632,3.14918,40271.0,40255.0,0.13632608]
[1610235868334,3.14918,40271.0,40268.0,0.13632608]
[1610235868534,3.14918,40271.0,40256.0,0.00022388]
[1610235868737,3.14918,40271.0,40250.0,3.5857]
[1610235869135,3.14918,40271.0,40251.0,0.00022387]
[1610235869538,0.09288,40271.0,40251.0,0.00022387]
[1610235869737,0.2706,40281.0,40251.0,0.00022387]
[1610235869937,0.2706,40281.0,40244.0,0.01218458]
[1610235870137,0.2706,40281.0,40252.0,0.00022389]
[1610235870339,0.0003052,40280.0,40257.0,0.13632608]
[1610235870738,0.0003052,40280.0,40258.0,0.00022389]
[1610235871741,1.0,40261.0,40258.0,0.00022389]
[1610235872338,0.13632608,40259.0,40258.0,0.00022389]
[1610235874544,0.09325,40262.0,40258.0,0.00022389]
[1610235874744,0.09325,40262.0,40257.0,0.13632608]
[1610235875144,0.09325,40262.0,40258.0,0.00022388]
[1610235876145,0.09325,40262.0,40257.0,0.13632608]
[1610235876345,0.13632608,40259.0,40257.0,0.13632608]
[1610235877748,1.0,40258.0,40257.0,0.13632608]
[1610235881249,1.0,40258.0,40257.0,0.13654996]
[1610235881449,1.0,40258.0,40257.0,0.13632608]
[1610235881650,0.13632608,40259.0,40257.0,0.13632608]
[1610235882051,0.13632608,40259.0,40258.0,0.00022389]
[1610235882250,0.13632608,40259.0,40257.0,0.13632608]
[1610235883155,0.13632608,40259.0,40258.0,0.0002239]
[1610235883656,1.13632608,40259.0,40258.0,0.0002239]
[1610235883855,1.13632608,40259.0,40245.0,3.0343]
[1610235884356,1.13632608,40259.0,40246.0,0.00022391]
[1610235884557,0.13632608,40247.0,40246.0,0.00022391]
[1610235888464,1.0,40250.0,40246.0,0.00022391]
[1610235889764,0.07399,40253.0,40246.0,0.00022391]
[1610235890565,0.07399,40253.0,40252.0,0.13632608]
[1610235890966,0.07399,40253.0,40252.0,0.13655001]
[1610235891169,0.13632608,40254.0,40252.0,0.13655001]
[1610235891567,0.13632608,40254.0,40253.0,0.00022393]
[1610235891767,1.13632608,40254.0,40253.0,0.00022393]
[1610235893772,0.13632608,40254.0,40253.0,0.00022393]
[1610235894370,1.0,40255.0,40253.0,0.00022393]
[1610235894770,1.0,40255.0,40253.0,0.01218519]
[1610235895773,0.13632608,40261.0,40253.0,0.01218519]
[1610235896674,0.13632608,40261.0,40260.0,0.13632608]
[1610235897075,0.13632608,40261.0,40260.0,0.13654996]
[1610235903683,1.13632608,40261.0,40260.0,0.13654996]
[1610235905691,1.13632608,40261.0,40260.0,0.00022388]
[1610235906092,1.13632608,40261.0,40251.0,0.00022394]
[1610235906493,1.13632608,40261.0,40260.0,0.00022394]
[1610235906692,1.13632608,40261.0,40252.0,0.00022394]
[1610235906891,1.13632608,40261.0,40260.0,0.00022394]
[1610235907293,1.13632608,40261.0,40253.0,0.00022394]
[1610235907492,1.13632608,40261.0,40260.0,0.00022394]
[1610235907692,1.13632608,40261.0,40254.0,0.00022394]
[1610235907891,1.13632608,40261.0,40260.0,0.00022394]
[1610235908292,1.13632608,40261.0,40251.0,0.00022394]
[1610235908493,1.13632608,40261.0,40260.0,0.00022394]
[1610235908692,1.13632608,40261.0,40252.0,0.00022394]
[1610235909096,1.13632608,40261.0,40251.0,0.01218685]
[1610235909294,1.13632608,40261.0,40253.0,0.00022392]
[1610235909494,1.13632608,40261.0,40252.0,0.00022392]
[1610235909695,0.13632608,40261.0,40252.0,0.00022392]
[1610235909897,0.13632608,40261.0,40251.0,0.01218685]
[1610235910097,0.13632608,40261.0,40253.0,0.00022392]
[1610235910298,0.13632608,40261.0,40252.0,0.00022392]
[1610235910699,0.13632608,40261.0,40260.0,0.13632608]
[1610235911100,0.13632608,40261.0,40260.0,0.13655]
[1610235911702,1.13632608,40261.0,40260.0,0.13655]
[1610235920915,1.13632608,40261.0,40260.0,0.00022392]
[1610235921515,1.13632608,40261.0,40253.0,0.00022381]
[1610235921716,1.13632608,40261.0,40260.0,0.00022381]
[1610235921917,1.13632608,40261.0,40254.0,0.00022381]
[1610235922316,1.13632608,40261.0,40253.0,0.00022381]
[1610235922517,1.13632608,40261.0,40252.0,2.9355]
[1610235922518,1.13632608,40261.0,40255.0,0.00022381]
[1610235922716,0.13632608,40256.0,40254.0,0.00022381]
[1610235923117,0.13632608,40256.0,40253.0,0.00022381]
[1610235923318,0.13632608,40256.0,40255.0,0.00022381]
[1610235923516,0.13632608,40256.0,40254.0,0.00022381]
[1610235923918,0.13632608,40256.0,40253.0,0.00022381]
[1610235924118,0.13632608,40256.0,40255.0,0.00022381]
[1610235924318,0.13632608,40256.0,40254.0,0.00022381]
[1610235924720,0.13632608,40256.0,40255.0,0.00022381]
[1610235925122,0.13632608,40256.0,40253.0,0.00022381]
[1610235925423,0.13632608,40256.0,40255.0,0.00022381]
[1610235925623,0.13632608,40256.0,40254.0,0.00022381]
[1610235926024,0.13632608,40256.0,40253.0,0.00022381]
[1610235926224,0.13632608,40256.0,40255.0,0.00021948]
[1610235926424,0.13632608,40256.0,40254.0,0.00021948]
[1610235926826,0.13632608,40256.0,40255.0,0.00021948]
[1610235927224,0.13632608,40256.0,40253.0,0.00021948]
[1610235927624,0.13632608,40256.0,40255.0,0.00021948]
[1610235927828,0.13632608,40256.0,40254.0,0.00021948]
[1610235928025,0.13632608,40256.0,40255.0,0.00021948]
[1610235928625,0.13632608,40256.0,40253.0,0.00021948]
[1610235928825,0.13632608,40256.0,40255.0,0.00021948]
[1610235929224,4.0549,40261.0,40252.0,0.13632608]
[1610235929225,4.0549,40261.0,40254.0,0.00021948]
[1610235929425,4.0549,40261.0,40255.0,0.00021948]
[1610235929924,4.0549,40261.0,40253.0,0.01060183]
[1610235930124,4.0549,40261.0,40256.0,0.00021946]
[1610235930525,4.0549,40261.0,40253.0,0.01060183]
[1610235930727,4.0549,40261.0,40260.0,0.13632608]
[1610235931326,4.0549,40261.0,40260.0,0.13654552]
[1610235931727,4.0549,40261.0,40260.0,0.00021944]
[1610235931728,5.0549,40261.0,40260.0,0.00021944]
[1610235932130,5.05520526,40261.0,40260.0,0.00021944]
[1610235932328,5.05520526,40261.0,40241.0,0.09278]
[1610235932329,5.05520526,40261.0,40242.0,0.01060214]
[1610235932529,5.21080526,40261.0,40260.0,0.00021948]
[1610235932729,0.00030526,40260.0,40252.0,0.13632608]
[1610235933128,0.00030526,40260.0,40253.0,0.00021948]
[1610235933632,1.0,40254.0,40253.0,0.00021948]
[1610235934833,1.13632608,40254.0,40253.0,0.00021948]
[1610235938136,1.0,40254.0,40253.0,0.00021948]
[1610235938738,1.0,40254.0,40253.0,0.01060144]
[1610235939742,0.09325,40262.0,40253.0,0.01060144]
[1610235939939,4.58842608,40268.0,40254.0,0.01]
[1610235940540,0.0003052,40267.0,40255.0,0.010599]
[1610235940741,0.1038652,40267.0,40264.0,0.13632608]
[1610235941240,0.0003052,40266.0,40265.0,0.00021943]
[1610235941440,0.10356,40267.0,40265.0,0.00021943]
[1610235941642,1.10356,40267.0,40265.0,0.00021943]
[1610235942842,0.13632608,40266.0,40265.0,0.00021943]
[1610235943343,0.13632608,40266.0,40258.0,0.00021943]
[1610235943644,1.13632608,40266.0,40265.0,0.00021943]
[1610235943845,1.13632608,40266.0,40259.0,0.00021943]
[1610235944145,1.13632608,40266.0,40258.0,0.00021945]
[1610235944545,0.00030523,40265.0,40260.0,0.00021945]
[1610235944747,0.00030523,40265.0,40259.0,0.00021945]
[1610235944945,0.00030523,40265.0,40257.0,0.13632608]
[1610235944946,0.13632608,40261.0,40257.0,0.13632608]
[1610235945145,0.13632608,40261.0,40260.0,0.00021946]
[1610235945547,0.13632608,40261.0,40258.0,0.00021946]
[1610235945746,0.13632608,40261.0,40257.0,0.13632608]
[1610235945747,1.13632608,40261.0,40260.0,0.00021946]
[1610235945947,1.13632608,40261.0,40259.0,0.00021946]
[1610235946346,1.13632608,40261.0,40258.0,0.00021946]
[1610235946548,1.13632608,40261.0,40260.0,0.00021946]
[1610235946748,1.13632608,40261.0,40259.0,0.00021946]
[1610235947147,1.13632608,40261.0,40258.0,0.00021946]
[1610235947349,1.13632608,40261.0,40260.0,0.00021946]
[1610235947548,1.13632608,40261.0,40259.0,0.00021946]
[1610235947748,0.13632608,40261.0,40259.0,0.00021946]
[1610235947947,0.13632608,40261.0,40258.0,0.00021946]
[1610235948148,0.13632608,40261.0,40260.0,0.00021946]
[1610235948348,0.13632608,40261.0,40259.0,0.00021946]
[1610235948749,0.13632608,40261.0,40258.0,0.00021944]
[1610235948949,0.13632608,40261.0,40260.0,0.00021944]
[1610235949148,0.13632608,40261.0,40259.0,0.00021944]
[1610235949549,0.13632608,40261.0,40260.0,0.00021944]
[1610235949953,0.13632608,40261.0,40260.0,0.00021946]
[1610235950352,0.13632608,40261.0,40258.0,0.00021946]
[1610235950552,0.13632608,40261.0,40260.0,0.00021946]
[1610235950754,0.13632608,40261.0,40259.0,0.00021946]
[1610235950953,0.13632608,40261.0,40260.0,0.00021946]
[1610235951353,0.13632608,40261.0,40258.0,0.00021946]
[1610235951555,0.13632608,40261.0,40260.0,0.00021946]
[1610235951753,0.13632608,40261.0,40257.0,0.13632608]
[1610235951754,0.13632608,40261.0,40259.0,0.00021946]
[1610235952154,0.13632608,40261.0,40258.0,0.00021946]
[1610235952354,0.13632608,40261.0,40260.0,0.00021946]
[1610235952556,0.13632608,40261.0,40259.0,0.00021944]
[1610235952955,0.13632608,40261.0,40258.0,0.00021944]
[1610235953155,0.13632608,40261.0,40260.0,0.00021944]
[1610235953354,0.13632608,40261.0,40259.0,0.00021944]
[1610235953555,0.10356,40267.0,40259.0,0.00021944]
[1610235953756,1.0,40261.0,40258.0,0.00021944]
[1610235953955,1.0,40261.0,40260.0,0.00021944]
[1610235954154,1.0,40261.0,40258.0,0.0106]
[1610235955555,1.0,40261.0,40258.0,0.00021944]
[1610235955755,3.58842608,40268.0,40259.0,0.00021944]
[1610235956356,3.58842608,40268.0,40258.0,0.00021944]
[1610235956557,3.58842608,40268.0,40260.0,0.00021944]
[1610235956756,3.58842608,40268.0,40259.0,0.00021944]
[1610235956956,0.13632608,40261.0,40259.0,0.00021944]
[1610235957156,0.13632608,40261.0,40258.0,0.00021944]
[1610235957357,0.13632608,40261.0,40260.0,0.00021944]
[1610235957556,0.13632608,40261.0,40259.0,0.00021944]
[1610235957957,0.13632608,40261.0,40258.0,0.00021944]
[1610235958156,0.13632608,40261.0,40260.0,0.00021944]
[1610235958357,0.13632608,40261.0,40259.0,0.00021944]
[1610235958758,0.13632608,40261.0,40258.0,0.00021944]
[1610235958956,0.13632608,40261.0,40260.0,0.00021944]
[1610235959156,0.13632608,40261.0,40259.0,0.00021944]
[1610235959356,3.4521,40268.0,40259.0,0.00021944]
[1610235959556,3.4521,40268.0,40258.0,0.01060012]
[1610235959757,3.4521,40268.0,40260.0,0.00021944]
[1610235959958,3.4521,40268.0,40259.0,0.00021944]
[1610235960360,3.4521,40268.0,40258.0,0.01060012]
[1610235960558,3.4521,40268.0,40260.0,0.00021944]
[1610235960758,3.4521,40268.0,40259.0,0.00021944]
[1610235960958,3.4521,40268.0,40266.0,0.13632608]
[1610235961359,3.4521,40268.0,40267.0,0.00021944]
[1610235962560,3.4521,40268.0,40267.0,0.01971944]
[1610235962760,3.45240523,40268.0,40267.0,0.01971944]
[1610235962963,3.58873131,40268.0,40267.0,0.01971944]
[1610235963762,4.58873131,40268.0,40267.0,0.01971944]
[1610235967666,3.58873131,40268.0,40267.0,0.01971944]
[1610235969669,4.58873131,40268.0,40267.0,0.01971944]
[1610235973676,3.57873131,40268.0,40267.0,0.01971944]
[1610235975777,4.57873131,40268.0,40267.0,0.01971944]
[1610235977680,3.57873131,40268.0,40267.0,0.01971944]
[1610235979680,4.57873131,40268.0,40267.0,0.01971944]
[1610235983684,3.57873131,40268.0,40267.0,0.01971944]
[1610235987688,4.57873131,40268.0,40267.0,0.01971944]
[1610235997796,9.57873131,40268.0,40267.0,0.01971944]
[1610235999703,4.57873131,40268.0,40267.0,0.01971944]
[1610236001803,3.57873131,40268.0,40267.0,0.01971944]
[1610236003706,4.57873131,40268.0,40267.0,0.01971944]
[1610236004410,6.07873131,40268.0,40267.0,0.0195]
[1610236005510,4.57873131,40268.0,40267.0,0.0195]
[1610236005711,9.57873131,40268.0,40267.0,0.0195]
[1610236006512,11.07873131,40268.0,40267.0,0.0195]
[1610236007913,9.57873131,40268.0,40267.0,0.0195]
[1610236008514,11.07873131,40268.0,40267.0,0.0195]
[1610236010216,9.57873131,40268.0,40267.0,0.0195]
[1610236010617,6.13663131,40268.0,40267.0,0.0195]
[1610236011818,1.13663131,40268.0,40267.0,0.0195]
[1610236014619,1.64003131,40268.0,40267.0,0.0195]
[1610236015724,0.64003131,40268.0,40267.0,0.0195]
[1610236017827,1.64003131,40268.0,40267.0,0.0195]
[1610236020028,1.13663131,40268.0,40267.0,0.0195]
[1610236027737,0.13663131,40268.0,40267.0,0.0195]
[1610236029240,3.58523131,40268.0,40267.0,0.0195]
[1610236029842,9.58523131,40268.0,40267.0,0.0195]
[1610236031243,9.61576277,40268.0,40267.0,0.0195]
[1610236031743,3.61576277,40268.0,40267.0,0.0195]
[1610236033546,3.60576277,40268.0,40267.0,0.0195]
[1610236033747,9.60576277,40268.0,40267.0,0.0195]
[1610236036450,11.10576277,40268.0,40267.0,0.0195]
[1610236036650,9.60576277,40268.0,40267.0,0.0195]
[1610236038254,9.60606809,40268.0,40267.0,0.0195]
[1610236039855,3.60606809,40268.0,40267.0,0.0195]
[1610236040953,3.68096809,40268.0,40267.0,0.0195]
[1610236041154,3.60606809,40268.0,40267.0,0.0195]
[1610236041755,9.60606809,40268.0,40267.0,0.0195]
[1610236051864,3.60606809,40268.0,40267.0,0.0195]
[1610236057471,0.15746809,40268.0,40267.0,0.0195]
[1610236057874,1.15746809,40268.0,40267.0,0.0195]
[1610236059773,7.65746809,40268.0,40267.0,0.0195]
[1610236060175,8.66905722,40268.0,40267.0,0.0195]
[1610236060575,9.00839889,40268.0,40267.0,0.0195]
[1610236061776,3.00839889,40268.0,40267.0,0.0195]
[1610236062375,1.50839889,40268.0,40267.0,0.0195]
[1610236062578,2.1654183,40268.0,40267.0,0.0195]
[1610236064278,3.6654183,40268.0,40267.0,0.0195]
[1610236065778,9.6654183,40268.0,40267.0,0.0195]
[1610236066082,10.2132383,40268.0,40267.0,0.0195]
[1610236066882,13.0724183,40268.0,40267.0,0.0195]
[1610236067081,13.0724183,40268.0,40220.0,0.09164]
[1610236067281,0.3179,40267.0,40208.0,2.57851716]
[1610236067482,1.5,40266.0,40208.0,2.57851716]
[1610236067681,1.53085018,40266.0,40212.0,0.14697836]
[1610236067882,1.01177635,40258.0,40212.0,0.13632608]
[1610236068084,1.5,40257.0,40213.0,0.0002198]
[1610236068283,1.5,40257.0,40213.0,0.01065271]
[1610236068484,0.03085263,40256.0,40213.0,0.01065271]
[1610236068883,0.2922,40255.0,40213.0,0.01065271]
[1610236069087,1.5,40254.0,40213.0,0.01065271]
[1610236069285,1.50030547,40254.0,40213.0,0.01065271]
[1610236069485,1.0,40219.0,40213.0,0.01065271]
[1610236069686,1.0,40219.0,40218.0,0.13632608]
[1610236070086,1.0,40219.0,40218.0,0.14701774]
[1610236070488,5.0,40239.0,40218.0,0.14701774]
[1610236070688,0.10001,40241.0,40218.0,0.14701774]
[1610236070689,0.10001,40241.0,40218.0,1.14701774]
[1610236070888,0.10001,40241.0,40219.0,0.01069012]
[1610236071989,0.10001,40241.0,40219.0,0.03954517]
[1610236072388,0.10001,40241.0,40240.0,0.13632608]
[1610236072789,0.13632608,40248.0,40240.0,0.13632608]
[1610236072989,0.13632608,40248.0,40240.0,0.13654591]
[1610236073188,0.13632608,40248.0,40241.0,0.00021983]
[1610236074491,0.13632608,40248.0,40247.0,0.13632608]
[1610236075091,0.13632608,40248.0,40247.0,0.13654591]
[1610236076192,0.13632608,40248.0,40247.0,0.00021983]
[1610236076598,0.13632608,40248.0,40240.0,0.13632608]
[1610236076797,0.23156608,40248.0,40240.0,0.13632608]
[1610236076995,0.23156608,40248.0,40241.0,0.00021983]
[1610236078294,0.23156608,40248.0,40235.0,0.00021983]
[1610236078498,0.13632608,40236.0,40234.0,1.0]
[1610236078897,0.13632608,40236.0,40232.0,3.51002608]
[1610236079099,0.13632608,40236.0,40235.0,0.00021985]
[1610236079298,0.13632608,40236.0,40233.0,0.00021985]
[1610236081500,0.11114,40239.0,40233.0,0.00021985]
[1610236082400,0.11114,40239.0,40238.0,0.13632608]
[1610236082802,0.11114,40239.0,40238.0,0.13654593]
[1610236083400,0.11114,40239.0,40238.0,0.13632608]
[1610236083601,0.11114,40239.0,40238.0,0.13654592]
[1610236083800,0.11114,40239.0,40238.0,0.13676576]
[1610236084200,0.1556,40247.0,40238.0,0.13676576]
[1610236084402,0.13632608,40239.0,40238.0,0.13676576]
[1610236084600,0.13632608,40239.0,40238.0,0.13654592]
[1610236085000,0.13632608,40239.0,40238.0,0.13676577]
[1610236088904,0.13632608,40239.0,40238.0,1.13676577]
[1610236089604,0.13632608,40239.0,40238.0,1.13676575]
[1610236092611,0.13632608,40239.0,40238.0,1.60456575]
[1610236092809,0.1556,40247.0,40238.0,0.13676575]
[1610236093209,0.09524,40248.0,40238.0,0.13676575]
[1610236093410,0.1556,40260.0,40239.0,1.50021983]
[1610236093610,0.1556,40260.0,40239.0,1.51021983]
[1610236093809,0.1556,40260.0,40240.0,0.00021983]
[1610236094010,0.1556,40279.0,40240.0,0.00021983]
[1610236094210,0.1556,40279.0,40241.0,1.5]
[1610236094611,0.1556,40279.0,40260.0,0.13632608]
[1610236094612,0.13632608,40262.0,40260.0,0.13632608]
[1610236094812,0.13632608,40262.0,40260.0,1.13632608]
[1610236095214,0.13632608,40262.0,40260.0,1.13654586]
[1610236095411,0.13632608,40262.0,40261.0,0.00021978]
[1610236097315,0.13632608,40262.0,40260.0,0.00021978]
[1610236097516,0.13632608,40262.0,40259.0,0.13632608]
[1610236098115,0.13632608,40262.0,40260.0,0.00021979]
[1610236098916,0.13632608,40262.0,40261.0,1.0]
[1610236099116,0.1556,40279.0,40261.0,1.0]
[1610236099316,0.1556,40279.0,40261.0,1.00021979]
[1610236099716,0.00030529,40269.0,40262.0,0.00021979]
[1610236099918,0.00030529,40278.0,40262.0,0.00021979]
[1610236100118,0.00030529,40268.0,40262.0,0.00021979]
[1610236100519,0.13632608,40268.0,40267.0,0.13632608]
[1610236100920,0.13663136,40268.0,40267.0,0.13654585]
[1610236101520,0.13632608,40268.0,40267.0,0.13632608]
[1610236102324,0.07471,40276.0,40267.0,0.13632608]
[1610236102524,0.07471,40276.0,40275.0,0.13632608]
[1610236103124,0.07501527,40276.0,40275.0,0.13632608]
[1610236104525,0.21134135,40276.0,40275.0,0.13632608]
[1610236104926,0.21103608,40276.0,40275.0,0.13632608]
[1610236105727,0.21103608,40276.0,40266.0,1.0]
[1610236106626,0.13632608,40267.0,40266.0,1.0]
[1610236106826,0.13632608,40267.0,40262.0,0.13632608]
[1610236107426,0.25624608,40267.0,40262.0,0.13632608]
[1610236108226,0.25624608,40267.0,40249.0,1.0]
[1610236108625,0.11992,40267.0,40250.0,0.13654556]
[1610236108826,1.0,40261.0,40250.0,0.13654556]
[1610236109226,1.0,40261.0,40251.0,0.00021948]
[1610236110631,0.13632608,40252.0,40251.0,0.00021948]
[1610236113433,0.13632608,40252.0,40243.0,0.0002195]
[1610236113631,0.13632608,40252.0,40242.0,1.0]
[1610236114032,0.13632608,40252.0,40244.0,0.00021953]
[1610236114233,0.13632608,40252.0,40243.0,0.00021953]
[1610236114433,0.13632608,40252.0,40245.0,0.00021955]
[1610236114633,0.13632608,40246.0,40245.0,0.00021955]
[1610236114834,0.13632608,40246.0,40244.0,0.00021955]
[1610236115034,0.13632608,40246.0,40245.0,0.00021955]
[1610236115635,0.13632608,40246.0,40241.0,0.00021955]
[1610236116038,0.13632608,40246.0,40245.0,0.00021955]
[1610236116236,0.13632608,40246.0,40242.0,0.00021955]
[1610236116437,0.13632608,40246.0,40245.0,0.00021955]
[1610236116636,0.13632608,40246.0,40245.0,0.13654563]
[1610236116837,0.13632608,40246.0,40245.0,0.13632608]
[1610236117036,0.13632608,40246.0,40245.0,0.13654563]
[1610236118338,0.13632608,40246.0,40245.0,0.00021955]
[1610236118939,0.13632608,40246.0,40240.0,0.13632608]
[1610236118940,0.13632608,40246.0,40240.0,0.13654563]
[1610236119140,0.13632608,40246.0,40245.0,0.00021955]
[1610236119341,0.13632608,40246.0,40241.0,0.00021955]
[1610236119741,0.13632608,40246.0,40245.0,0.00021955]
[1610236119941,0.13632608,40246.0,40242.0,0.00021955]
[1610236120141,0.13632608,40246.0,40245.0,0.00021955]
[1610236120441,0.13632608,40246.0,40243.0,0.00021955]
[1610236120641,0.11224,40249.0,40245.0,0.00021953]
[1610236121043,1.0,40260.0,40241.0,0.00021953]
[1610236121242,1.0,40260.0,40246.0,0.00021953]
[1610236121442,1.0,40260.0,40242.0,0.00021953]
[1610236121844,1.0,40260.0,40247.0,0.00021953]
[1610236122043,1.0,40260.0,40243.0,0.00021953]
[1610236122243,1.0,40260.0,40248.0,0.00021953]
[1610236122644,1.0,40260.0,40254.0,0.13632608]
[1610236122844,1.0,40257.0,40249.0,0.00021953]
[1610236123044,1.09794,40257.0,40237.0,1.0]
[1610236123244,1.09794,40257.0,40238.0,3.2926]
[1610236123445,1.09794,40257.0,40250.0,0.00021954]
[1610236123646,1.09794,40257.0,40240.0,0.00021954]
[1610236123846,1.09794,40257.0,40251.0,0.00021954]
[1610236124246,1.09794,40257.0,40241.0,0.00021954]
[1610236124447,1.09794,40257.0,40238.0,3.2926]
[1610236124646,1.09794,40257.0,40242.0,0.00021954]
[1610236124846,1.0,40253.0,40241.0,0.13632608]
[1610236125147,1.0,40253.0,40242.0,0.00021954]
[1610236125548,1.0,40253.0,40238.0,3.2926]
[1610236125549,1.0,40253.0,40239.0,0.00021954]
[1610236125749,1.0,40253.0,40243.0,0.00021954]
[1610236125949,1.0,40253.0,40240.0,0.00021954]
[1610236126151,1.0,40253.0,40238.0,3.2926]
[1610236126152,1.0,40253.0,40244.0,0.00021954]
[1610236126448,1.0,40253.0,40239.0,0.00021954]
[1610236126648,1.0,40253.0,40244.0,0.13632608]
[1610236126849,1.0,40249.0,40239.0,0.00021954]
[1610236127049,1.0,40249.0,40245.0,0.00021954]
[1610236127250,1.0,40249.0,40240.0,0.00021954]
[1610236127653,1.0,40249.0,40239.0,0.00021954]
[1610236127851,1.0,40249.0,40241.0,0.00021954]
[1610236128050,1.0,40249.0,40240.0,0.00021954]
[1610236128451,1.0,40249.0,40242.0,0.00021954]
[1610236128653,0.13632608,40243.0,40241.0,0.13654562]
[1610236128852,0.13632608,40243.0,40241.0,0.13632608]
[1610236129051,0.13632608,40243.0,40242.0,0.00021955]
[1610236133957,0.13632608,40243.0,40242.0,0.00021954]
[1610236134157,0.13632608,40243.0,40238.0,0.00021954]
[1610236134356,0.13632608,40243.0,40242.0,0.00021954]
[1610236134757,0.13632608,40243.0,40238.0,0.00021954]
[1610236134957,0.13632608,40243.0,40242.0,0.00021954]
[1610236135157,0.13632608,40243.0,40239.0,0.00021954]
[1610236135558,0.13632608,40243.0,40236.0,0.01057716]
[1610236135758,0.13632608,40243.0,40240.0,0.00021954]
[1610236135959,0.13632608,40243.0,40237.0,0.00021956]
[1610236136361,0.13632608,40243.0,40232.0,0.01057814]
[1610236136558,0.13632608,40243.0,40238.0,0.00021956]
[1610236136960,0.13632608,40243.0,40233.0,0.00021958]
[1610236137160,0.00030544,40242.0,40239.0,0.00021958]
[1610236137360,0.00030544,40242.0,40234.0,0.00021958]
[1610236137562,0.00030544,40242.0,40240.0,0.0002196]
[1610236137960,0.00030544,40242.0,40235.0,0.0002196]
[1610236138160,0.00030544,40242.0,40241.0,0.0002196]
[1610236138361,0.00030544,40242.0,40236.0,0.0002196]
[1610236138762,0.00030544,40242.0,40241.0,0.0002196]
[1610236138962,0.00030544,40242.0,40237.0,0.0002196]
[1610236139161,0.00030544,40243.0,40241.0,0.0002196]
[1610236139361,0.00030544,40243.0,40238.0,0.0002196]
[1610236139562,0.00030544,40241.0,40238.0,0.0002196]
[1610236139762,0.00030544,40242.0,40227.0,0.0002196]
[1610236139962,4.0056,40244.0,40239.0,0.0002196]
[1610236140364,0.00030545,40241.0,40228.0,0.0002196]
[1610236140563,0.00030545,40243.0,40240.0,0.0002196]
[1610236140764,0.13632608,40241.0,40229.0,0.0002196]
[1610236140966,0.13632608,40241.0,40226.0,2.8681]
[1610236141365,0.13632608,40241.0,40227.0,0.00021961]
[1610236141965,3.14392608,40241.0,40227.0,0.00021961]
[1610236142366,3.14392608,40241.0,40221.0,0.01058093]
[1610236142566,3.14392608,40241.0,40228.0,0.00021961]
[1610236142766,0.13632608,40229.0,40228.0,0.00021961]
[1610236142967,0.13632608,40229.0,40226.0,0.13632608]
[1610236143166,0.13632608,40229.0,40228.0,0.00021961]
[1610236143366,0.13632608,40229.0,40227.0,0.00021961]
[1610236144570,0.13632608,40229.0,40221.0,0.01057989]
[1610236144771,0.08785,40238.0,40228.0,0.00021959]
[1610236144972,1.0,40235.0,40222.0,0.00021959]
[1610236145371,1.0,40235.0,40229.0,0.00021961]
[1610236145571,1.0,40235.0,40223.0,0.00021961]
[1610236145770,1.0,40235.0,40230.0,0.00021961]
[1610236146174,1.0,40235.0,40224.0,0.00021961]
[1610236146373,1.0,40235.0,40231.0,0.00021961]
[1610236146574,1.0,40235.0,40225.0,0.00021961]
[1610236146775,0.13632608,40226.0,40221.0,0.13632608]
[1610236147175,0.13632608,40226.0,40222.0,0.00021962]
[1610236150782,0.13632608,40226.0,40221.0,0.00021962]
[1610236150982,1.0,40223.0,40221.0,0.00021962]
[1610236151182,1.0,40223.0,40220.0,2.905]
[1610236151382,1.0,40223.0,40222.0,0.00021963]
[1610236151581,1.0,40223.0,40221.0,0.00021963]
[1610236151782,1.0,40223.0,40222.0,0.00021963]
[1610236152083,1.0,40223.0,40214.0,0.00021963]
[1610236152885,0.13632608,40215.0,40214.0,0.00021963]
[1610236154887,1.13632608,40215.0,40214.0,0.00021963]
[1610236156088,1.13632608,40215.0,40214.0,0.00021967]
[1610236157891,1.13632608,40215.0,40213.0,0.11104]
[1610236158090,1.13632608,40215.0,40200.0,0.13632608]
[1610236158490,1.13632608,40215.0,40201.0,0.00021968]
[1610236158891,0.13632608,40202.0,40201.0,0.11086968]
[1610236161997,1.0,40215.0,40201.0,0.11086968]